[Event "Titled Tuesday Blitz January 18 2022"]
[White "Svane, Frederik"]
[Black "Papp, Petra"]
[WhiteFideId "12923044"]
[BlackFideId "739049"]
[WhiteElo "2459"]
[BlackElo "2259"]
[Result "1-0"]
[Round "06"]
[TimeControl "180+1"]
[Date "2022.01.18"]
[WhiteClock "0:00:05"]
[BlackClock "0:00:07"]

1. e4 {[%clk 0:03:00]}  d6 {[%clk 0:03:00]} 2. d4 {[%clk 0:03:01]}  Nf6 {[%clk 0:02:59]} 3. Nd2 {[%clk 0:03:01]}  e5 {[%clk 0:02:57]} 4. c3 {[%clk 0:03:01]}  Be7 {[%clk 0:02:54]} 5. Ngf3 {[%clk 0:03:02]}  Nbd7 {[%clk 0:02:49]} 6. Bc4 {[%clk 0:03:00]}  O-O {[%clk 0:02:49]} 7. O-O {[%clk 0:03:01]}  b6 {[%clk 0:02:48]} 8. Re1 {[%clk 0:02:59]}  Bb7 {[%clk 0:02:45]} 9. a4 {[%clk 0:02:59]}  a6 {[%clk 0:02:43]} 10. Bd3 {[%clk 0:02:43]}  c6 {[%clk 0:02:37]} 11. Nf1 {[%clk 0:02:39]}  Re8 {[%clk 0:02:33]} 12. Ng3 {[%clk 0:02:39]}  Bf8 {[%clk 0:02:32]} 13. h3 {[%clk 0:02:31]}  g6 {[%clk 0:02:31]} 14. Bg5 {[%clk 0:02:27]}  Qc7 {[%clk 0:02:25]} 15. b4 {[%clk 0:02:16]}  Bg7 {[%clk 0:02:22]} 16. Qd2 {[%clk 0:02:13]}  Nf8 {[%clk 0:02:05]} 17. Bh6 {[%clk 0:01:56]}  Ne6 {[%clk 0:02:01]} 18. Bxg7 {[%clk 0:01:56]}  Kxg7 {[%clk 0:01:56]} 19. Rad1 {[%clk 0:01:56]}  Nf4 {[%clk 0:01:40]} 20. Bf1 {[%clk 0:01:56]}  Rad8 {[%clk 0:01:37]} 21. c4 {[%clk 0:01:43]}  c5 {[%clk 0:01:30]} 22. bxc5 {[%clk 0:01:35]}  bxc5 {[%clk 0:01:23]} 23. d5 {[%clk 0:01:34]}  Rb8 {[%clk 0:01:21]} 24. Rb1 {[%clk 0:01:31]}  Ba8 {[%clk 0:00:48]} 25. a5 {[%clk 0:00:21]}  Nd7 {[%clk 0:00:46]} 26. Qa2 {[%clk 0:00:19]}  Rb4 {[%clk 0:00:41]} 27. Rb2 {[%clk 0:00:13]}  Reb8 {[%clk 0:00:40]} 28. Reb1 {[%clk 0:00:13]}  Qb7 {[%clk 0:00:25]} 29. Rxb4 {[%clk 0:00:13]}  cxb4 {[%clk 0:00:26]} 30. Nd2 {[%clk 0:00:14]}  Nc5 {[%clk 0:00:24]} 31. Nb3 {[%clk 0:00:14]}  Qc7 {[%clk 0:00:21]} 32. Kh2 {[%clk 0:00:02]}  h5 {[%clk 0:00:20]} 33. Kg1 {[%clk 0:00:02]}  h4 {[%clk 0:00:17]} 34. Nxc5 {[%clk 0:00:02]}  Qxc5 {[%clk 0:00:11]} 35. Nh1 {[%clk 0:00:02]}  Bb7 {[%clk 0:00:07]} 36. Kh2 {[%clk 0:00:03]}  Bc8 {[%clk 0:00:08]} 37. g3 {[%clk 0:00:03]}  hxg3+ {[%clk 0:00:07]} 38. fxg3 {[%clk 0:00:03]}  Nh5 {[%clk 0:00:07]} 39. Qd2 {[%clk 0:00:02]}  Nf6 {[%clk 0:00:07]} 40. Nf2 {[%clk 0:00:02]}  Bd7 {[%clk 0:00:07]} 41. Bg2 {[%clk 0:00:02]}  b3 {[%clk 0:00:07]} 42. g4 {[%clk 0:00:02]}  Qd4 {[%clk 0:00:06]} 43. Qe2 {[%clk 0:00:01]}  b2 {[%clk 0:00:06]} 44. Bf3 {[%clk 0:00:02]}  Ba4 {[%clk 0:00:05]} 45. Kg2 {[%clk 0:00:02]}  Qc3 {[%clk 0:00:05]} 46. Nd3 {[%clk 0:00:02]}  Bc2 {[%clk 0:00:04]} 47. Rxb2 {[%clk 0:00:03]}  Rxb2 {[%clk 0:00:03]} 48. Nxb2 {[%clk 0:00:04]}  Qxb2 {[%clk 0:00:03]} 49. g5 {[%clk 0:00:05]}  Nh7 {[%clk 0:00:01]} 50. c5 {[%clk 0:00:05]}  Qc3 {[%clk 0:00:02]} 51. cxd6 {[%clk 0:00:05]}  Nf8 {[%clk 0:00:02]} 52. Bg4 {[%clk 0:00:05]}  Qd3 {[%clk 0:00:03]} 53. Qxd3 {[%clk 0:00:05]}  Bxd3 {[%clk 0:00:04]} 54. d7 {[%clk 0:00:06]}  Nxd7 {[%clk 0:00:03]} 55. Bxd7 {[%clk 0:00:07]}  Kf8 {[%clk 0:00:04]} 56. Kf3 {[%clk 0:00:06]}  Ke7 {[%clk 0:00:04]} 57. Bc8 {[%clk 0:00:06]}  Kd6 {[%clk 0:00:04]} 58. Ke3 {[%clk 0:00:07]}  Bb5 {[%clk 0:00:04]} 59. h4 {[%clk 0:00:07]}  Kc5 {[%clk 0:00:05]} 60. Bb7 {[%clk 0:00:07]}  Kd6 {[%clk 0:00:05]} 61. Bc8 {[%clk 0:00:06]}  Kc5 {[%clk 0:00:05]} 62. Bg4 {[%clk 0:00:04]}  Kd6 {[%clk 0:00:05]} 63. h5 {[%clk 0:00:04]}  gxh5 {[%clk 0:00:04]} 64. Bxh5 {[%clk 0:00:05]}  Ke7 {[%clk 0:00:04]} 65. Be2 {[%clk 0:00:06]}  Kd6 {[%clk 0:00:04]} 66. Bxb5 {[%clk 0:00:05]}  axb5 {[%clk 0:00:05]} 67. Kd3 {[%clk 0:00:06]}  Kc5 {[%clk 0:00:05]} 68. Kc3 {[%clk 0:00:06]}  b4+ {[%clk 0:00:05]} 69. Kb3 {[%clk 0:00:07]}  Kb5 {[%clk 0:00:05]} 70. d6 {[%clk 0:00:04]}  Kc6 {[%clk 0:00:06]} 71. Kxb4 {[%clk 0:00:04]}  Kxd6 {[%clk 0:00:07]} 72. Kb5 {[%clk 0:00:05]} 1-0


[Site "https://www.chess.com"]

[Event "Titled Tuesday Blitz January 18 2022"]
[White "Sviridov, Valery"]
[Black "Petrovskyi, Vadym"]
[WhiteFideId "4120680"]
[BlackFideId "14165210"]
[WhiteElo "2949"]
[BlackElo "2719"]
[Result "1-0"]
[Round "06"]
[TimeControl "180+1"]
[Date "2022.01.18"]
[WhiteClock "0:00:16"]
[BlackClock "0:00:12"]

1. Nf3 {[%clk 0:03:00]}  Nf6 {[%clk 0:02:59]} 2. g3 {[%clk 0:03:00]}  g6 {[%clk 0:03:00]} 3. Bg2 {[%clk 0:03:01]}  Bg7 {[%clk 0:03:00]} 4. O-O {[%clk 0:03:01]}  O-O {[%clk 0:03:01]} 5. c4 {[%clk 0:03:01]}  d6 {[%clk 0:03:02]} 6. Nc3 {[%clk 0:03:02]}  e5 {[%clk 0:03:01]} 7. d4 {[%clk 0:03:02]}  Nbd7 {[%clk 0:03:01]} 8. e4 {[%clk 0:03:02]}  c6 {[%clk 0:03:02]} 9. h3 {[%clk 0:03:02]}  Qb6 {[%clk 0:03:00]} 10. dxe5 {[%clk 0:02:58]}  dxe5 {[%clk 0:03:00]} 11. Qc2 {[%clk 0:02:59]}  a5 {[%clk 0:02:58]} 12. Be3 {[%clk 0:02:57]}  Qb4 {[%clk 0:02:57]} 13. Nd2 {[%clk 0:02:47]}  Qe7 {[%clk 0:02:55]} 14. Na4 {[%clk 0:02:43]}  b5 {[%clk 0:02:35]} 15. cxb5 {[%clk 0:02:42]}  cxb5 {[%clk 0:02:35]} 16. Nc3 {[%clk 0:02:42]}  Ba6 {[%clk 0:02:26]} 17. Rfc1 {[%clk 0:02:19]}  Rac8 {[%clk 0:02:24]} 18. Qd1 {[%clk 0:02:19]}  Nc5 {[%clk 0:02:18]} 19. Nb3 {[%clk 0:02:17]}  Rfd8 {[%clk 0:02:14]} 20. Nd5 {[%clk 0:02:12]}  Nxd5 {[%clk 0:01:16]} 21. Bxc5 {[%clk 0:02:12]}  Qe8 {[%clk 0:00:58]} 22. exd5 {[%clk 0:02:12]}  a4 {[%clk 0:00:58]} 23. Na5 {[%clk 0:02:09]}  Bh6 {[%clk 0:00:57]} 24. Be3 {[%clk 0:02:02]}  Bxe3 {[%clk 0:00:56]} 25. fxe3 {[%clk 0:02:03]}  e4 {[%clk 0:00:57]} 26. Qd4 {[%clk 0:02:00]}  f5 {[%clk 0:00:56]} 27. Nc6 {[%clk 0:01:56]}  Rd7 {[%clk 0:00:56]} 28. Ne5 {[%clk 0:01:55]}  Rd6 {[%clk 0:00:52]} 29. Rxc8 {[%clk 0:01:43]}  Qxc8 {[%clk 0:00:51]} 30. Rd1 {[%clk 0:01:43]}  Bb7 {[%clk 0:00:50]} 31. Qb4 {[%clk 0:01:04]}  Rxd5 {[%clk 0:00:44]} 32. Rxd5 {[%clk 0:01:04]}  Bxd5 {[%clk 0:00:45]} 33. Bf1 {[%clk 0:01:05]}  Qc7 {[%clk 0:00:30]} 34. Qd4 {[%clk 0:01:02]}  Bxa2 {[%clk 0:00:29]} 35. Bxb5 {[%clk 0:01:01]}  Bb3 {[%clk 0:00:26]} 36. Bc4+ {[%clk 0:01:01]}  Kf8 {[%clk 0:00:22]} 37. Nxg6+ {[%clk 0:00:58]}  hxg6 {[%clk 0:00:21]} 38. Qh8+ {[%clk 0:00:59]}  Ke7 {[%clk 0:00:21]} 39. Qg7+ {[%clk 0:00:52]}  Kd6 {[%clk 0:00:17]} 40. Qxc7+ {[%clk 0:00:53]}  Kxc7 {[%clk 0:00:17]} 41. Bb5 {[%clk 0:00:54]}  Kd6 {[%clk 0:00:15]} 42. h4 {[%clk 0:00:52]}  Ke5 {[%clk 0:00:15]} 43. Kf2 {[%clk 0:00:50]}  Kf6 {[%clk 0:00:15]} 44. Ke2 {[%clk 0:00:48]}  g5 {[%clk 0:00:16]} 45. Kd2 {[%clk 0:00:47]}  gxh4 {[%clk 0:00:16]} 46. gxh4 {[%clk 0:00:48]}  Kg6 {[%clk 0:00:15]} 47. Be8+ {[%clk 0:00:46]}  Kf6 {[%clk 0:00:15]} 48. Kc3 {[%clk 0:00:47]}  f4 {[%clk 0:00:15]} 49. exf4 {[%clk 0:00:36]}  Kf5 {[%clk 0:00:15]} 50. h5 {[%clk 0:00:36]}  Kxf4 {[%clk 0:00:13]} 51. h6 {[%clk 0:00:15]}  Bg8 {[%clk 0:00:13]} 52. Bg6 {[%clk 0:00:15]}  e3 {[%clk 0:00:13]} 53. h7 {[%clk 0:00:15]}  Bxh7 {[%clk 0:00:13]} 54. Bxh7 {[%clk 0:00:16]}  Kf3 {[%clk 0:00:14]} 55. Bd3 {[%clk 0:00:15]}  e2 {[%clk 0:00:12]} 56. Kd2 {[%clk 0:00:16]}  e1=Q+ {[%clk 0:00:10]} 57. Kxe1 {[%clk 0:00:16]}  Ke3 {[%clk 0:00:11]} 58. Bc2 {[%clk 0:00:16]}  a3 {[%clk 0:00:12]} 59. bxa3 {[%clk 0:00:16]}  Kd4 {[%clk 0:00:13]} 60. Kd2 {[%clk 0:00:16]}  Kc5 {[%clk 0:00:13]} 61. Kc3 {[%clk 0:00:16]}  Kb6 {[%clk 0:00:12]} 62. Kb4 {[%clk 0:00:16]} 1-0


[Site "https://www.chess.com"]

[Event "Titled Tuesday Blitz January 18 2022"]
[White "Tabatabaei, M. Amin"]
[Black "Salinas Herrera, Pablo"]
[WhiteFideId "12521213"]
[BlackFideId "3407128"]
[WhiteElo "2950"]
[BlackElo "2853"]
[Result "1/2-1/2"]
[Round "06"]
[TimeControl "180+1"]
[Date "2022.01.18"]
[WhiteClock "0:00:09"]
[BlackClock "0:00:07"]

1. d4 {[%clk 0:03:00]}  d5 {[%clk 0:02:59]} 2. Nf3 {[%clk 0:03:00]}  Nf6 {[%clk 0:03:00]} 3. Bf4 {[%clk 0:03:01]}  e6 {[%clk 0:03:00]} 4. e3 {[%clk 0:03:01]}  Bd6 {[%clk 0:03:00]} 5. Ne5 {[%clk 0:03:02]}  O-O {[%clk 0:03:01]} 6. Nd2 {[%clk 0:03:03]}  b6 {[%clk 0:02:58]} 7. h4 {[%clk 0:03:03]}  Bb7 {[%clk 0:02:58]} 8. h5 {[%clk 0:03:03]}  Ne4 {[%clk 0:02:54]} 9. h6 {[%clk 0:03:00]}  g6 {[%clk 0:02:54]} 10. Nxe4 {[%clk 0:02:54]}  dxe4 {[%clk 0:02:54]} 11. Qg4 {[%clk 0:02:54]}  Nd7 {[%clk 0:02:41]} 12. Nxd7 {[%clk 0:02:53]}  Qxd7 {[%clk 0:02:40]} 13. Be2 {[%clk 0:02:52]}  Qe7 {[%clk 0:02:30]} 14. O-O {[%clk 0:02:43]}  e5 {[%clk 0:02:03]} 15. dxe5 {[%clk 0:02:43]}  Bxe5 {[%clk 0:02:04]} 16. Bxe5 {[%clk 0:02:44]}  Qxe5 {[%clk 0:02:04]} 17. Rad1 {[%clk 0:02:40]}  Rad8 {[%clk 0:02:04]} 18. Qh4 {[%clk 0:02:36]}  f6 {[%clk 0:01:51]} 19. Bc4+ {[%clk 0:02:33]}  Kh8 {[%clk 0:01:50]} 20. c3 {[%clk 0:02:33]}  c5 {[%clk 0:01:26]} 21. a4 {[%clk 0:02:26]}  Bc8 {[%clk 0:01:25]} 22. a5 {[%clk 0:02:07]}  Be6 {[%clk 0:01:12]} 23. Be2 {[%clk 0:01:58]}  g5 {[%clk 0:01:10]} 24. Qg3 {[%clk 0:01:46]}  Kg8 {[%clk 0:00:54]} 25. Qxe5 {[%clk 0:01:26]}  fxe5 {[%clk 0:00:55]} 26. Bh5 {[%clk 0:01:26]}  b5 {[%clk 0:00:54]} 27. a6 {[%clk 0:01:26]}  Bb3 {[%clk 0:00:49]} 28. Rxd8 {[%clk 0:01:09]}  Rxd8 {[%clk 0:00:50]} 29. f3 {[%clk 0:01:09]}  Bc4 {[%clk 0:00:41]} 30. Rf2 {[%clk 0:01:09]}  Rd1+ {[%clk 0:00:34]} 31. Kh2 {[%clk 0:01:09]}  Rd6 {[%clk 0:00:35]} 32. Kg3 {[%clk 0:00:49]}  Rxh6 {[%clk 0:00:34]} 33. Kg4 {[%clk 0:00:49]}  exf3 {[%clk 0:00:30]} 34. gxf3 {[%clk 0:00:49]}  Rxa6 {[%clk 0:00:28]} 35. Rd2 {[%clk 0:00:50]}  Kg7 {[%clk 0:00:23]} 36. Kxg5 {[%clk 0:00:46]}  h6+ {[%clk 0:00:23]} 37. Kf5 {[%clk 0:00:46]}  Rf6+ {[%clk 0:00:11]} 38. Kxe5 {[%clk 0:00:44]}  Re6+ {[%clk 0:00:12]} 39. Kf4 {[%clk 0:00:44]}  a5 {[%clk 0:00:11]} 40. e4 {[%clk 0:00:43]}  a4 {[%clk 0:00:11]} 41. e5 {[%clk 0:00:44]}  b4 {[%clk 0:00:10]} 42. cxb4 {[%clk 0:00:41]}  cxb4 {[%clk 0:00:10]} 43. Rd7+ {[%clk 0:00:41]}  Kf8 {[%clk 0:00:10]} 44. Ra7 {[%clk 0:00:42]}  Ra6 {[%clk 0:00:09]} 45. Rc7 {[%clk 0:00:23]}  a3 {[%clk 0:00:09]} 46. bxa3 {[%clk 0:00:13]}  bxa3 {[%clk 0:00:10]} 47. Rxc4 {[%clk 0:00:14]}  a2 {[%clk 0:00:10]} 48. Rc1 {[%clk 0:00:14]}  a1=Q {[%clk 0:00:11]} 49. Rxa1 {[%clk 0:00:15]}  Rxa1 {[%clk 0:00:11]} 50. Kf5 {[%clk 0:00:16]}  Ke7 {[%clk 0:00:11]} 51. f4 {[%clk 0:00:15]}  Rh1 {[%clk 0:00:11]} 52. Kg6 {[%clk 0:00:14]}  Re1 {[%clk 0:00:06]} 53. Kxh6 {[%clk 0:00:09]}  Re3 {[%clk 0:00:06]} 54. Kg5 {[%clk 0:00:09]}  Re1 {[%clk 0:00:06]} 55. Bg4 {[%clk 0:00:09]}  Re3 {[%clk 0:00:07]} 56. Bf5 {[%clk 0:00:09]}  Re1 {[%clk 0:00:07]} 57. Kg4 {[%clk 0:00:10]}  Re3 {[%clk 0:00:07]} 58. Bb1 {[%clk 0:00:10]}  Ke6 {[%clk 0:00:07]} 59. Ba2+ {[%clk 0:00:10]}  Ke7 {[%clk 0:00:08]} 60. Kf5 {[%clk 0:00:10]}  Re1 {[%clk 0:00:07]} 61. Bc4 {[%clk 0:00:10]}  Re3 {[%clk 0:00:08]} 62. Kg6 {[%clk 0:00:10]}  Re4 {[%clk 0:00:08]} 63. Bd5 {[%clk 0:00:07]}  Rxf4 {[%clk 0:00:08]} 64. Kg5 {[%clk 0:00:07]}  Rf1 {[%clk 0:00:08]} 65. Bc4 {[%clk 0:00:07]}  Re1 {[%clk 0:00:08]} 66. Kf5 {[%clk 0:00:07]}  Rc1 {[%clk 0:00:07]} 67. Bd5 {[%clk 0:00:08]}  Rc5 {[%clk 0:00:08]} 68. Bb3 {[%clk 0:00:08]}  Rb5 {[%clk 0:00:08]} 69. Bc4 {[%clk 0:00:09]}  Rxe5+ {[%clk 0:00:07]} 70. Kxe5 {[%clk 0:00:09]} 1/2-1/2


[Site "https://www.chess.com"]

[Event "Titled Tuesday Blitz January 18 2022"]
[White "Taichman, Ori"]
[Black "Pakleza, Zbigniew"]
[WhiteFideId "2804069"]
[BlackFideId "1119290"]
[WhiteElo "2227"]
[BlackElo "2467"]
[Result "0-1"]
[Round "06"]
[TimeControl "180+1"]
[Date "2022.01.18"]
[WhiteClock "0:00:09"]
[BlackClock "0:00:09"]

1. e4 {[%clk 0:02:53]}  d6 {[%clk 0:02:59]} 2. d4 {[%clk 0:02:53]}  Nf6 {[%clk 0:03:00]} 3. Nc3 {[%clk 0:02:51]}  c6 {[%clk 0:03:01]} 4. f4 {[%clk 0:02:50]}  Qb6 {[%clk 0:03:01]} 5. Nf3 {[%clk 0:02:51]}  Bg4 {[%clk 0:03:01]} 6. Bc4 {[%clk 0:02:47]}  e6 {[%clk 0:02:48]} 7. Bb3 {[%clk 0:02:35]}  d5 {[%clk 0:02:45]} 8. e5 {[%clk 0:02:35]}  Nfd7 {[%clk 0:02:45]} 9. Be3 {[%clk 0:02:33]}  c5 {[%clk 0:02:35]} 10. dxc5 {[%clk 0:01:56]}  Bxc5 {[%clk 0:02:23]} 11. Na4 {[%clk 0:01:55]}  Qb4+ {[%clk 0:02:21]} 12. Bd2 {[%clk 0:01:32]}  Qe4+ {[%clk 0:02:20]} 13. Qe2 {[%clk 0:01:30]}  Bxf3 {[%clk 0:01:48]} 14. gxf3 {[%clk 0:01:28]}  Qxe2+ {[%clk 0:01:48]} 15. Kxe2 {[%clk 0:01:28]}  Nc6 {[%clk 0:01:42]} 16. c4 {[%clk 0:01:24]}  Nd4+ {[%clk 0:01:36]} 17. Kd3 {[%clk 0:01:20]}  dxc4+ {[%clk 0:01:04]} 18. Bxc4 {[%clk 0:01:12]}  Nxf3 {[%clk 0:01:02]} 19. Bc3 {[%clk 0:00:37]}  O-O-O {[%clk 0:00:47]} 20. Nxc5 {[%clk 0:00:35]}  Nxc5+ {[%clk 0:00:43]} 21. Ke3 {[%clk 0:00:35]}  Nh4 {[%clk 0:00:39]} 22. Rac1 {[%clk 0:00:34]}  Nf5+ {[%clk 0:00:35]} 23. Kf3 {[%clk 0:00:22]}  Kb8 {[%clk 0:00:35]} 24. Rhd1 {[%clk 0:00:18]}  h6 {[%clk 0:00:25]} 25. b4 {[%clk 0:00:16]}  Na4 {[%clk 0:00:22]} 26. Ba1 {[%clk 0:00:16]}  Nb6 {[%clk 0:00:22]} 27. Bb3 {[%clk 0:00:15]}  Rc8 {[%clk 0:00:20]} 28. a4 {[%clk 0:00:15]}  Rxc1 {[%clk 0:00:18]} 29. Rxc1 {[%clk 0:00:16]}  Rd8 {[%clk 0:00:18]} 30. a5 {[%clk 0:00:10]}  Nd5 {[%clk 0:00:18]} 31. Rd1 {[%clk 0:00:09]}  Kc7 {[%clk 0:00:15]} 32. b5 {[%clk 0:00:09]}  b6 {[%clk 0:00:11]} 33. axb6+ {[%clk 0:00:09]}  Kxb6 {[%clk 0:00:09]} 34. Bd4+ {[%clk 0:00:09]}  Nxd4+ {[%clk 0:00:09]} 0-1


[Site "https://www.chess.com"]

[Event "Titled Tuesday Blitz January 18 2022"]
[White "Tsyhanchuk, Stanislav"]
[Black "Obolenskikh, Dmitry"]
[WhiteFideId "13505130"]
[BlackFideId "4156013"]
[WhiteElo "2078"]
[BlackElo "2512"]
[Result "0-1"]
[Round "06"]
[TimeControl "180+1"]
[Date "2022.01.18"]
[WhiteClock "0:00:01"]
[BlackClock "0:00:10"]

1. e4 {[%clk 0:03:00]}  e5 {[%clk 0:02:59]} 2. Nf3 {[%clk 0:03:01]}  Nc6 {[%clk 0:02:59]} 3. Bc4 {[%clk 0:03:01]}  Bc5 {[%clk 0:02:59]} 4. O-O {[%clk 0:03:01]}  Nf6 {[%clk 0:02:59]} 5. d4 {[%clk 0:03:01]}  Bxd4 {[%clk 0:02:58]} 6. Nxd4 {[%clk 0:03:00]}  Nxd4 {[%clk 0:02:57]} 7. f4 {[%clk 0:03:00]}  d6 {[%clk 0:02:51]} 8. fxe5 {[%clk 0:03:00]}  dxe5 {[%clk 0:02:51]} 9. Bg5 {[%clk 0:03:01]}  Qe7 {[%clk 0:02:46]} 10. Bxf6 {[%clk 0:02:54]}  gxf6 {[%clk 0:02:46]} 11. c3 {[%clk 0:02:51]}  Be6 {[%clk 0:02:35]} 12. Na3 {[%clk 0:02:50]}  Nc6 {[%clk 0:02:12]} 13. Kh1 {[%clk 0:02:34]}  Rg8 {[%clk 0:02:07]} 14. Qa4 {[%clk 0:02:21]}  Rg6 {[%clk 0:01:46]} 15. Rad1 {[%clk 0:02:15]}  Kf8 {[%clk 0:01:44]} 16. Bxe6 {[%clk 0:02:13]}  fxe6 {[%clk 0:01:41]} 17. Nc4 {[%clk 0:02:05]}  Rd8 {[%clk 0:01:40]} 18. b4 {[%clk 0:02:00]}  a6 {[%clk 0:01:39]} 19. Qc2 {[%clk 0:01:54]}  Rxd1 {[%clk 0:01:32]} 20. Qxd1 {[%clk 0:01:55]}  Kg8 {[%clk 0:01:23]} 21. a4 {[%clk 0:01:52]}  Nd8 {[%clk 0:01:05]} 22. Qd3 {[%clk 0:01:50]}  Nf7 {[%clk 0:01:03]} 23. Rd1 {[%clk 0:01:49]}  b5 {[%clk 0:00:54]} 24. axb5 {[%clk 0:01:45]}  axb5 {[%clk 0:00:54]} 25. Ne3 {[%clk 0:01:31]}  Nd6 {[%clk 0:00:54]} 26. Ra1 {[%clk 0:01:25]}  Kf7 {[%clk 0:00:52]} 27. Ra7 {[%clk 0:01:21]}  Rg8 {[%clk 0:00:46]} 28. Qe2 {[%clk 0:01:10]}  Kg7 {[%clk 0:00:40]} 29. c4 {[%clk 0:00:44]}  Kh8 {[%clk 0:00:38]} 30. c5 {[%clk 0:00:40]}  Nxe4 {[%clk 0:00:38]} 31. Qxb5 {[%clk 0:00:35]}  Qd8 {[%clk 0:00:35]} 32. Qe2 {[%clk 0:00:18]}  Qd4 {[%clk 0:00:28]} 33. Rxc7 {[%clk 0:00:18]}  Qa1+ {[%clk 0:00:20]} 34. Qf1 {[%clk 0:00:16]}  Qb2 {[%clk 0:00:17]} 35. Nc4 {[%clk 0:00:05]}  Qxb4 {[%clk 0:00:15]} 36. Nd6 {[%clk 0:00:05]}  f5 {[%clk 0:00:11]} 37. Nf7+ {[%clk 0:00:05]}  Kg7 {[%clk 0:00:11]} 38. Nxe5+ {[%clk 0:00:05]}  Kh8 {[%clk 0:00:11]} 39. Nd3 {[%clk 0:00:04]}  Qd4 {[%clk 0:00:11]} 40. Nf4 {[%clk 0:00:04]}  Nf2+ {[%clk 0:00:11]} 41. Kg1 {[%clk 0:00:04]}  Nh3+ {[%clk 0:00:11]} 42. Kh1 {[%clk 0:00:04]}  Nxf4 {[%clk 0:00:12]} 43. c6 {[%clk 0:00:01]}  Rxg2 {[%clk 0:00:11]} 44. Rd7 {[%clk 0:00:01]}  Qb2 {[%clk 0:00:10]} 0-1


[Site "https://www.chess.com"]

[Event "Titled Tuesday Blitz January 18 2022"]
[White "Vignesh, N R"]
[Black "Ekdyshman, Mikhail"]
[WhiteFideId "25012215"]
[BlackFideId "4149416"]
[WhiteElo "2395"]
[BlackElo "2156"]
[Result "1-0"]
[Round "06"]
[TimeControl "180+1"]
[Date "2022.01.18"]
[WhiteClock "0:01:28"]
[BlackClock "0:00:04"]

1. d4 {[%clk 0:03:00]}  d5 {[%clk 0:02:55]} 2. c3 {[%clk 0:03:00]}  Nf6 {[%clk 0:02:54]} 3. Bf4 {[%clk 0:02:59]}  c6 {[%clk 0:02:53]} 4. Nf3 {[%clk 0:02:57]}  Bf5 {[%clk 0:02:52]} 5. g3 {[%clk 0:02:56]}  Nbd7 {[%clk 0:02:51]} 6. Bg2 {[%clk 0:02:56]}  e6 {[%clk 0:02:49]} 7. O-O {[%clk 0:02:56]}  h6 {[%clk 0:02:48]} 8. Re1 {[%clk 0:02:55]}  Be7 {[%clk 0:02:47]} 9. Nbd2 {[%clk 0:02:50]}  O-O {[%clk 0:02:47]} 10. Ne5 {[%clk 0:02:50]}  Nxe5 {[%clk 0:02:47]} 11. Bxe5 {[%clk 0:02:50]}  Nd7 {[%clk 0:02:40]} 12. Bf4 {[%clk 0:02:43]}  a5 {[%clk 0:02:37]} 13. e4 {[%clk 0:02:40]}  dxe4 {[%clk 0:02:37]} 14. Bxe4 {[%clk 0:02:36]}  Bxe4 {[%clk 0:02:36]} 15. Nxe4 {[%clk 0:02:37]}  a4 {[%clk 0:02:35]} 16. c4 {[%clk 0:02:37]}  a3 {[%clk 0:02:34]} 17. b3 {[%clk 0:02:37]}  Bb4 {[%clk 0:02:28]} 18. Re3 {[%clk 0:02:34]}  Nf6 {[%clk 0:02:28]} 19. Nxf6+ {[%clk 0:02:26]}  Qxf6 {[%clk 0:02:27]} 20. Be5 {[%clk 0:02:26]}  Qg6 {[%clk 0:02:19]} 21. Qe2 {[%clk 0:02:24]}  Rad8 {[%clk 0:02:09]} 22. Rd1 {[%clk 0:02:23]}  f6 {[%clk 0:01:36]} 23. Bc7 {[%clk 0:02:17]}  Rd7 {[%clk 0:01:31]} 24. Bb6 {[%clk 0:02:17]}  e5 {[%clk 0:00:51]} 25. dxe5 {[%clk 0:02:14]}  Rxd1+ {[%clk 0:00:50]} 26. Qxd1 {[%clk 0:02:15]}  fxe5 {[%clk 0:00:48]} 27. Rxe5 {[%clk 0:02:13]}  Qf6 {[%clk 0:00:45]} 28. Re2 {[%clk 0:02:04]}  Qf3 {[%clk 0:00:43]} 29. Qc2 {[%clk 0:01:50]}  c5 {[%clk 0:00:33]} 30. Qe4 {[%clk 0:01:47]}  Qc3 {[%clk 0:00:13]} 31. Bxc5 {[%clk 0:01:39]}  Bxc5 {[%clk 0:00:09]} 32. Qd5+ {[%clk 0:01:39]}  Kh7 {[%clk 0:00:08]} 33. Qxc5 {[%clk 0:01:39]}  Rf6 {[%clk 0:00:07]} 34. Qxa3 {[%clk 0:01:32]}  Qd3 {[%clk 0:00:07]} 35. Qb2 {[%clk 0:01:31]}  Qd1+ {[%clk 0:00:05]} 36. Kg2 {[%clk 0:01:30]}  Qd7 {[%clk 0:00:05]} 37. Qc2+ {[%clk 0:01:29]}  Kg8 {[%clk 0:00:05]} 38. Qe4 {[%clk 0:01:28]}  Kh8 {[%clk 0:00:04]} 39. Qe8+ {[%clk 0:01:28]} 1-0


[Site "https://www.chess.com"]